fUST/lending_fUST_20251126
["ID","MTS","AMOUNT","RATE_DAILY","PERIOD"]
[394926759,1764138637716,-521.37153654,7.453e-05,2]
[394926760,1764138637773,-14.62392441,7.453e-05,2]
[394926761,1764138637782,-500.86400021,7.453e-05,2]
[394926762,1764138637791,-500.0,7.453e-05,2]
[394926763,1764138637800,-500.0,7.453e-05,2]
[394926764,1764138637809,-500.0,7.453e-05,2]
[394926765,1764138637819,-189.64025483,7.469e-05,2]
[394926766,1764138637829,-250.0,7.469e-05,2]
[394926767,1764138637839,-250.0,7.469e-05,2]
[394926768,1764138637850,-250.0,7.469e-05,2]
[394926769,1764138637859,-250.0,7.469e-05,2]
[394926770,1764138637870,-45.87182055,7.469e-05,2]
[394926771,1764138637882,-204.12817945,7.469e-05,2]
[394926772,1764138637891,-250.0,7.469e-05,2]
[394926773,1764138637899,-275.19665979,7.473e-05,2]
[394926774,1764138637908,-52.5164785,7.474e-05,2]
[394926775,1764138637920,-1116.45259264,7.474e-05,2]
[394926776,1764138637930,-680.82787613,7.474e-05,2]
[394926823,1764139831942,-212.0,7.324e-05,2]
[394926824,1764139831953,-214.84774319,7.331e-05,2]
[394926825,1764139831962,-675.0,7.352e-05,2]
[394926826,1764139831976,-500.0,7.353e-05,2]
[394926827,1764139831985,-500.0,7.353e-05,2]
[394926828,1764139831995,-500.45443145,7.353e-05,2]
[394926829,1764139832004,-500.0,7.373e-05,2]
[394926830,1764139832014,-500.0,7.373e-05,2]
[394926831,1764139832024,-264.02406195,7.373e-05,2]
[394926832,1764139832034,-11965.83756609,7.374e-05,2]
[394926833,1764139832045,-698.40913749,7.374e-05,2]
[394926834,1764139832060,-2323.55467836,7.374e-05,2]
[394926835,1764139832071,-258.22366975,7.374e-05,2]
[394926836,1764139832082,-1333.37,7.374e-05,2]
[394927233,1764141038154,-721.0,6.896e-05,2]
[394927234,1764141038164,-210.0,6.966e-05,2]
[394927235,1764141038173,-109.03002027,7.042e-05,2]
[394927236,1764141038185,-115.13403285,7.042e-05,2]
[394927237,1764141038195,-212.196,7.128e-05,2]
[394927238,1764141038205,-1200.0,7.252e-05,2]
[394927239,1764141038215,-300.0,7.252e-05,2]
[394927240,1764141038225,-96.31292782,7.252e-05,2]
[394927241,1764141038236,-478.68707218,7.252e-05,2]
[394927242,1764141038246,-500.0,7.253e-05,2]
[394927243,1764141038256,-500.0,7.253e-05,2]
[394927244,1764141038265,-500.0,7.253e-05,2]
[394927245,1764141038275,-500.0,7.253e-05,2]
[394927246,1764141038284,-500.0,7.253e-05,2]
[394927247,1764141038293,-500.0,7.265e-05,2]
[394927249,1764141038302,-500.0,7.265e-05,2]
[394927251,1764141038311,-642.0190713,7.265e-05,2]
[394927252,1764141038320,-500.0,7.265e-05,2]
[394927254,1764141038330,-500.0,7.265e-05,2]
[394927255,1764141038339,-500.0,7.265e-05,2]
[394927256,1764141038349,-500.0,7.265e-05,2]
[394927257,1764141038358,-500.0,7.265e-05,2]
[394927258,1764141038367,-500.0,7.265e-05,2]
[394927259,1764141038376,-500.0,7.265e-05,2]
[394927260,1764141038385,-500.0,7.265e-05,2]
[394927261,1764141038394,-283.99150124,7.265e-05,2]
[394927262,1764141038403,-500.0,7.265e-05,2]
[394927263,1764141038412,-500.0,7.265e-05,2]
[394927264,1764141038421,-500.0,7.265e-05,2]
[394927265,1764141038430,-500.0,7.265e-05,2]
[394927266,1764141038439,-500.0,7.265e-05,2]
[394927267,1764141038448,-500.0,7.265e-05,2]
[394927268,1764141038457,-500.0,7.265e-05,2]
[394927269,1764141038465,-500.0,7.265e-05,2]
[394927270,1764141038474,-500.0,7.265e-05,2]
[394927271,1764141038484,-500.0,7.265e-05,2]
[394927272,1764141038493,-500.0,7.265e-05,2]
[394927273,1764141038502,-500.0,7.265e-05,2]
[394927274,1764141038511,-500.0,7.265e-05,2]
[394927275,1764141038520,-500.0,7.265e-05,2]
[394927276,1764141038529,-500.0,7.265e-05,2]
[394927277,1764141038538,-500.0,7.265e-05,2]
[394927278,1764141038548,-500.0,7.265e-05,2]
[394927279,1764141038556,-500.0,7.265e-05,2]
[394927280,1764141038566,-500.0,7.265e-05,2]
[394927281,1764141038575,-500.0,7.265e-05,2]
[394927282,1764141038584,-500.0,7.265e-05,2]
[394927283,1764141038593,-500.0,7.265e-05,2]
[394927284,1764141038602,-500.0,7.265e-05,2]
[394927285,1764141038611,-500.0,7.265e-05,2]
[394927286,1764141038621,-500.0,7.265e-05,2]
[394927287,1764141038630,-500.0,7.265e-05,2]
[394927288,1764141038640,-500.0,7.265e-05,2]
[394927289,1764141038649,-637.08933857,7.265e-05,2]
[394927290,1764141038658,-500.0,7.265e-05,2]
[394927291,1764141038667,-151.59078118,7.269e-05,2]
[394927292,1764141038677,-500.0,7.273e-05,2]
[394927293,1764141038687,-60531.61751642,7.274e-05,2]
[394927294,1764141038711,-2543.33468453,7.274e-05,2]
[394927338,1764141044929,-625.78505773,6.827e-05,2]
[394927341,1764141046452,-95.21494227,6.827e-05,2]
[394927342,1764141046462,-311.75589157,7.168e-05,2]
[394927403,1764142070722,3000.0,0.000133,9]
[394927426,1764142232465,-191.44206224,6.227e-05,2]
[394927427,1764142232475,-396.44206224,6.29e-05,2]
[394927428,1764142232486,-205.0,6.354e-05,2]
[394927429,1764142232496,-228.53710917,6.386e-05,2]
[394927430,1764142232507,-168.999999,7e-05,2]
[394927431,1764142232516,-500.0,7.043e-05,2]
[394927432,1764142232526,-500.0,7.043e-05,2]
[394927433,1764142232536,-500.0,7.043e-05,2]
[394927434,1764142232556,-500.0,7.043e-05,2]
[394927435,1764142232575,-501.42834678,7.043e-05,2]
[394927436,1764142232586,-300.0,7.066e-05,2]
[394927438,1764142232601,-300.0,7.066e-05,2]
[394927440,1764142232615,-300.0,7.066e-05,2]
[394927442,1764142232630,-1200.0,7.066e-05,2]
[394927445,1764142232643,-280444.26010632,7.068e-05,2]
[394927467,1764142246400,-10017.94803927,6.995e-05,2]
[394927468,1764142246409,-500.0,7.066e-05,2]
[394927469,1764142246418,-593.70893386,7.066e-05,2]
[394927470,1764142246427,-475.99905569,7.066e-05,2]
[394927471,1764142246436,-500.0,7.066e-05,2]
[394927472,1764142246446,-500.0,7.066e-05,2]
[394927473,1764142246455,-500.0,7.066e-05,2]
[394927474,1764142246464,-500.0,7.066e-05,2]
[394927475,1764142246473,-500.0,7.066e-05,2]
[394927476,1764142246483,-500.0,7.066e-05,2]
[394927477,1764142246492,-500.0,7.066e-05,2]
[394927478,1764142246502,-500.0,7.066e-05,2]
[394927479,1764142246511,-500.0,7.066e-05,2]
[394927480,1764142246520,-500.0,7.066e-05,2]
[394927481,1764142246530,-448.24004972,7.066e-05,2]
[394927482,1764142246539,-500.0,7.066e-05,2]
[394927483,1764142246550,-500.0,7.066e-05,2]
[394927484,1764142246560,-500.0,7.066e-05,2]
[394927485,1764142246569,-500.0,7.066e-05,2]
[394927486,1764142246580,-500.0,7.066e-05,2]
[394927487,1764142246591,-500.0,7.066e-05,2]
[394927488,1764142246600,-500.0,7.066e-05,2]
[394927489,1764142246609,-37169.92161244,7.068e-05,2]
[394927490,1764142246621,-300.16552,7.068e-05,2]
[394927505,1764142277856,150.0,7.066e-05,3]
[394927506,1764142280875,150.0,7.066e-05,3]
[394927522,1764142601413,266.95,0.00014,10]
[394927547,1764143432664,-283.32353234,6.491e-05,2]
[394927548,1764143432675,-796.18441449,6.491e-05,2]
[394927549,1764143432686,-207.0,6.557e-05,2]
[394927550,1764143432696,-227.10638479,6.691e-05,2]
[394927551,1764143432705,-457.81573894,6.826e-05,2]
[394927552,1764143432715,-206.69220789,6.826e-05,2]
[394927553,1764143432725,-300.0,6.964e-05,2]
[394927554,1764143432735,-579.0,6.964e-05,2]
[394927555,1764143432745,-4.73218155,6.965e-05,2]
[394927556,1764143438718,-495.26781845,6.965e-05,2]
[394927557,1764143438728,-500.0,6.965e-05,2]
[394927558,1764143438737,-383.1377833,6.965e-05,2]
[394927559,1764143438747,-500.0,6.965e-05,2]
[394927560,1764143438756,-500.0,6.965e-05,2]
[394927561,1764143438766,-500.0,6.965e-05,2]
[394927562,1764143438775,-500.0,6.965e-05,2]
[394927563,1764143438784,-500.0,6.965e-05,2]
[394927564,1764143438794,-500.0,6.965e-05,2]
[394927565,1764143438803,-500.0,6.965e-05,2]
[394927566,1764143438813,-500.0,6.965e-05,2]
[394927567,1764143438823,-500.0,6.965e-05,2]
[394927568,1764143438833,-500.0,6.965e-05,2]
[394927569,1764143438842,-500.0,6.965e-05,2]
[394927570,1764143438852,-500.0,6.965e-05,2]
[394927571,1764143438861,-500.0,6.965e-05,2]
[394927572,1764143438870,-500.0,6.965e-05,2]
[394927573,1764143438881,-500.0,6.965e-05,2]
[394927574,1764143438890,-500.0,6.965e-05,2]
[394927575,1764143438900,-500.0,6.965e-05,2]
[394927576,1764143438910,-500.0,6.965e-05,2]
[394927577,1764143438920,-500.0,6.965e-05,2]
[394927578,1764143438930,-465.18699522,6.965e-05,2]
[394927579,1764143438939,-500.0,6.965e-05,2]
[394927580,1764143438949,-500.0,6.965e-05,2]
[394927581,1764143438958,-500.0,6.965e-05,2]
[394927582,1764143438968,-500.0,6.965e-05,2]
[394927583,1764143438977,-190.81780134,6.965e-05,2]
[394927584,1764143438987,-500.0,6.965e-05,2]
[394927585,1764143438996,-500.0,6.965e-05,2]
[394927586,1764143439006,-500.0,6.965e-05,2]
[394927587,1764143439015,-500.0,6.965e-05,2]
[394927588,1764143439025,-500.0,6.965e-05,2]
[394927589,1764143439036,-500.0,6.965e-05,2]
[394927590,1764143439048,-500.0,6.965e-05,2]
[394927591,1764143439057,-500.0,6.965e-05,2]
[394927592,1764143439066,-500.0,6.965e-05,2]
[394927593,1764143439076,-500.0,6.965e-05,2]
[394927594,1764143439086,-500.0,6.965e-05,2]
[394927595,1764143439095,-500.0,6.965e-05,2]
[394927596,1764143439105,-500.0,6.965e-05,2]
[394927597,1764143439118,-500.0,6.965e-05,2]
[394927598,1764143439128,-500.0,6.965e-05,2]
[394927599,1764143439139,-500.0,6.965e-05,2]
[394927600,1764143439148,-500.0,6.965e-05,2]
[394927601,1764143439157,-167.17134678,6.965e-05,2]
[394927602,1764143439167,-500.0,6.965e-05,2]
[394927603,1764143439178,-500.0,6.965e-05,2]
[394927604,1764143439188,-500.0,6.965e-05,2]
[394927605,1764143439197,-500.0,6.965e-05,2]
[394927606,1764143439207,-500.0,6.965e-05,2]
[394927607,1764143439217,-500.0,6.965e-05,2]
[394927608,1764143439226,-500.0,6.965e-05,2]
[394927609,1764143439236,-500.0,6.965e-05,2]
[394927610,1764143439245,-500.0,6.965e-05,2]
[394927611,1764143439254,-500.0,6.965e-05,2]
[394927612,1764143439263,-500.0,6.965e-05,2]
[394927613,1764143439272,-500.0,6.965e-05,2]
[394927614,1764143439281,-500.0,6.965e-05,2]
[394927615,1764143439292,-500.0,6.965e-05,2]
[394927616,1764143439302,-500.0,6.965e-05,2]
[394927617,1764143439311,-500.0,6.965e-05,2]
[394927618,1764143439321,-500.0,6.965e-05,2]
[394927619,1764143439330,-500.0,6.965e-05,2]
[394927620,1764143439339,-500.0,6.965e-05,2]
[394927621,1764143439348,-500.0,6.965e-05,2]
[394927622,1764143439357,-500.0,6.965e-05,2]
[394927623,1764143439366,-500.0,6.965e-05,2]
[394927624,1764143439375,-500.0,6.965e-05,2]
[394927625,1764143439385,-500.0,6.965e-05,2]
[394927626,1764143439394,-1239.91437303,6.965e-05,2]
[394927627,1764143439403,-1239.91437303,6.965e-05,2]
[394927628,1764143439412,-1239.91437303,6.965e-05,2]
[394927629,1764143439421,-1239.91437303,6.965e-05,2]
[394927630,1764143439430,-1239.91437303,6.965e-05,2]
[394927631,1764143439439,-1239.91437303,6.965e-05,2]
[394927632,1764143439448,-1239.91437303,6.965e-05,2]
[394927633,1764143439457,-1239.91437303,6.965e-05,2]
[394927634,1764143439465,-1239.91437303,6.965e-05,2]
[394927635,1764143439474,-1239.91437303,6.965e-05,2]
[394927636,1764143439483,-500.0,6.965e-05,2]
[394927637,1764143439492,-1239.91437303,6.965e-05,2]
[394927638,1764143439501,-500.0,6.965e-05,2]
[394927639,1764143439510,-1239.91437303,6.965e-05,2]
[394927640,1764143439519,-500.0,6.965e-05,2]
[394927641,1764143439528,-1239.91437303,6.965e-05,2]
[394927642,1764143439538,-500.0,6.965e-05,2]
[394927643,1764143439548,-1239.91437303,6.965e-05,2]
[394927644,1764143439557,-500.0,6.965e-05,2]
[394927645,1764143439567,-1239.91437303,6.965e-05,2]
[394927646,1764143439577,-500.0,6.965e-05,2]
[394927647,1764143439587,-1239.91437303,6.965e-05,2]
[394927648,1764143439597,-500.0,6.965e-05,2]
[394927649,1764143439606,-1239.91437303,6.965e-05,2]
[394927650,1764143439615,-500.0,6.965e-05,2]
[394927651,1764143439625,-1239.91437303,6.965e-05,2]
[394927652,1764143439635,-500.0,6.965e-05,2]
[394927653,1764143439646,-1239.91437303,6.965e-05,2]
[394927654,1764143439655,-500.0,6.965e-05,2]
[394927655,1764143439667,-1239.91437303,6.965e-05,2]
[394927656,1764143439676,-500.0,6.965e-05,2]
[394927657,1764143439686,-1239.91437303,6.965e-05,2]
[394927658,1764143439695,-500.0,6.965e-05,2]
[394927659,1764143439704,-500.0,6.965e-05,2]
[394927660,1764143439713,-1239.91437303,6.965e-05,2]
[394927661,1764143439724,-500.0,6.965e-05,2]
[394927662,1764143439733,-1239.91437303,6.965e-05,2]
[394927663,1764143439742,-500.0,6.965e-05,2]
[394927664,1764143439752,-1239.91437303,6.965e-05,2]
[394927665,1764143439762,-500.0,6.965e-05,2]
[394927666,1764143439771,-1239.91437302,6.965e-05,2]
[394927667,1764143439780,-500.0,6.965e-05,2]
[394927668,1764143439791,-1239.91437303,6.965e-05,2]
[394927669,1764143439807,-1239.91437303,6.965e-05,2]
[394927670,1764143439816,-500.0,6.965e-05,2]
[394927671,1764143439826,-500.0,6.965e-05,2]
[394927672,1764143439835,-269.08178013,6.965e-05,2]
[394927673,1764143439845,-1239.91437303,6.965e-05,2]
[394927674,1764143439854,-1239.91437303,6.965e-05,2]
[394927675,1764143439864,-1239.91437303,6.965e-05,2]
[394927676,1764143439873,-500.0,6.965e-05,2]
[394927677,1764143439883,-1239.91437303,6.965e-05,2]
[394927678,1764143439893,-1239.91437303,6.965e-05,2]
[394927679,1764143439902,-1239.91437303,6.965e-05,2]
[394927680,1764143439912,-1239.91437303,6.965e-05,2]
[394927681,1764143439921,-1239.91437303,6.965e-05,2]
[394927682,1764143439931,-1228.38028583,6.965e-05,2]
[394927683,1764143439940,-1228.38028583,6.965e-05,2]
[394927684,1764143439953,-1228.38028583,6.965e-05,2]
[394927685,1764143439962,-1228.38028583,6.965e-05,2]
[394927686,1764143439971,-1228.38028583,6.965e-05,2]
[394927687,1764143439981,-1228.38028583,6.965e-05,2]
[394927688,1764143439991,-1228.38028583,6.965e-05,2]
[394927689,1764143440002,-1228.38028583,6.965e-05,2]
[394927690,1764143440012,-1228.38028583,6.965e-05,2]
[394927691,1764143440020,-1228.38028583,6.965e-05,2]
[394927692,1764143440029,-500.0,6.965e-05,2]
[394927693,1764143440043,-500.0,6.965e-05,2]
[394927694,1764143440052,-1228.38028583,6.965e-05,2]
[394927695,1764143440061,-500.0,6.965e-05,2]
[394927696,1764143440070,-1228.38028583,6.965e-05,2]
[394927697,1764143440079,-500.0,6.965e-05,2]
[394927698,1764143440090,-1228.38028583,6.965e-05,2]
[394927699,1764143440099,-500.0,6.965e-05,2]
[394927700,1764143440108,-1228.38028583,6.965e-05,2]
[394927701,1764143440117,-1228.38028583,6.965e-05,2]
[394927702,1764143440126,-500.0,6.965e-05,2]
[394927703,1764143440136,-1228.38028583,6.965e-05,2]
[394927704,1764143440146,-600.0,6.965e-05,2]
[394927705,1764143440155,-1228.38028583,6.965e-05,2]
[394927706,1764143440165,-1228.38028583,6.965e-05,2]
[394927707,1764143440174,-1228.38028583,6.965e-05,2]
[394927708,1764143440183,-1228.38028583,6.965e-05,2]
[394927709,1764143440192,-1228.38028583,6.965e-05,2]
[394927710,1764143440202,-1228.38028583,6.965e-05,2]
[394927711,1764143440211,-1228.38028583,6.965e-05,2]
[394927712,1764143440220,-1237.59313797,6.965e-05,2]
[394927713,1764143440229,-1237.59313797,6.965e-05,2]
[394927714,1764143440238,-1237.59313797,6.965e-05,2]
[394927715,1764143440248,-1237.59313797,6.965e-05,2]
[394927716,1764143440257,-1237.59313797,6.965e-05,2]
[394927717,1764143440266,-1237.59313797,6.965e-05,2]
[394927718,1764143440276,-1237.59313797,6.965e-05,2]
[394927719,1764143440285,-1237.59313797,6.965e-05,2]
[394927720,1764143440295,-1237.59313797,6.965e-05,2]
[394927721,1764143440304,-1237.59313797,6.965e-05,2]
[394927722,1764143440313,-1237.59313797,6.965e-05,2]
[394927723,1764143440323,-1237.59313797,6.965e-05,2]
[394927724,1764143440332,-1237.59313797,6.965e-05,2]
[394927725,1764143440341,-1237.59313797,6.965e-05,2]
[394927726,1764143440351,-1237.59313797,6.965e-05,2]
[394927727,1764143440359,-1237.59313797,6.965e-05,2]
[394927729,1764143440368,-1237.59313797,6.965e-05,2]
[394927731,1764143440377,-1237.59313797,6.965e-05,2]
[394927732,1764143440386,-1283.42992089,6.965e-05,2]
[394927733,1764143440395,-1283.42992089,6.965e-05,2]
[394927734,1764143440404,-475.79813412,6.965e-05,2]
[394927735,1764143440426,-807.63178677,6.965e-05,2]
[394927736,1764143440435,-1200.0,6.965e-05,2]
[394927737,1764143440444,-398.87149065,6.967e-05,2]
[394927738,1764143440453,-120475.93467821,6.968e-05,2]
[394927762,1764143440958,-9759.85069032,6.968e-05,2]
[394927770,1764143446923,-1553.59001102,6.895e-05,2]
[394927782,1764144110105,187.0,0.0002,30]
[394927818,1764144631836,-208.0,6.489e-05,2]
[394927819,1764144631846,-206.0,6.489e-05,2]
[394927820,1764144631855,-229.06367331,6.639e-05,2]
[394927821,1764144631865,-214.396,6.73e-05,2]
[394927822,1764144631874,-500.3601762,6.843e-05,2]
[394927824,1764144631884,-500.0,6.843e-05,2]
[394927826,1764144631894,-500.0,6.843e-05,2]
[394927828,1764144631904,-500.0,6.843e-05,2]
[394927830,1764144631913,-500.0,6.843e-05,2]
[394927832,1764144631923,-500.0,6.843e-05,2]
[394927833,1764144631933,-500.0,6.843e-05,2]
[394927834,1764144631942,-500.0,6.843e-05,2]
[394927835,1764144631952,-500.0,6.843e-05,2]
[394927836,1764144631961,-500.62420265,6.843e-05,2]
[394927837,1764144631970,-500.0,6.843e-05,2]
[394927838,1764144631979,-501.72280862,6.843e-05,2]
[394927839,1764144631987,-500.0,6.843e-05,2]
[394927840,1764144631996,-383.59160672,6.843e-05,2]
[394927841,1764144632006,-1200.0,6.865e-05,2]
[394927842,1764144632015,-300.0,6.866e-05,2]
[394927843,1764144632024,-300.0,6.866e-05,2]
[394927844,1764144632033,-300.0,6.866e-05,2]
[394927845,1764144632043,-300.0,6.866e-05,2]
[394927846,1764144632052,-500.0,6.867e-05,2]
[394927847,1764144632061,-70724.79583299,6.868e-05,2]
[394927848,1764144632072,-614.17490624,6.868e-05,2]
[394927850,1764144637697,-722.72360805,6.842e-05,2]
[394927851,1764144637706,-276.0851374,6.842e-05,2]
[394927857,1764144640070,-260.76561014,6.773e-05,2]
[394927858,1764144640082,-350.0842972,6.773e-05,2]
[394927876,1764144645951,-8108.11854305,6.773e-05,2]
[394927883,1764145048191,1351.89107051,0.0002,30]
[394927907,1764145495986,1259.666637,0.00012,6]
[394927908,1764145574510,200.0,9e-05,3]
[394927939,1764145832864,-227.8079878,6.417e-05,2]
[394927940,1764145832875,-206.0,6.417e-05,2]
[394927941,1764145832884,-227.8079878,6.482e-05,2]
[394927942,1764145832895,-300.0,6.648e-05,2]
[394927943,1764145832904,-129.97314693,6.649e-05,2]
[394927944,1764145833200,-500.0,6.653e-05,2]
[394927945,1764145833210,-390.42683677,6.653e-05,2]
[394927946,1764145833220,-628.67680201,6.653e-05,2]
[394927947,1764145833230,-500.78461369,6.653e-05,2]
[394927948,1764145833239,-502.48094318,6.653e-05,2]
[394927949,1764145833248,-155.79847515,6.653e-05,2]
[394927950,1764145833257,-500.31431748,6.653e-05,2]
[394927951,1764145833267,-500.0,6.653e-05,2]
[394927952,1764145833276,-195.59956402,6.653e-05,2]
[394927969,1764145846356,-7199.99999992,6.581e-05,2]
[394928035,1764146780371,814.6,0.0002,30]
[394928039,1764147032151,-206.0,6.194e-05,2]
[394928040,1764147032161,-204.0,6.194e-05,2]
[394928041,1764147032171,-226.79425826,6.321e-05,2]
[394928042,1764147032180,-300.0,6.518e-05,2]
[394928043,1764147032190,-114.98424646,6.518e-05,2]
[394928044,1764147032234,-185.01575354,6.518e-05,2]
[394928046,1764147032243,-183.00803121,6.518e-05,2]
[394928055,1764147038167,-500.0,6.518e-05,2]
[394928056,1764147038178,-457.05,6.518e-05,2]
[394928057,1764147038274,-42.95,6.518e-05,2]
[394928058,1764147038284,-500.0,6.518e-05,2]
[394928059,1764147038295,-500.0,6.518e-05,2]
[394928060,1764147038305,-500.0,6.518e-05,2]
[394928061,1764147038314,-500.0,6.518e-05,2]
[394928062,1764147038324,-500.0,6.518e-05,2]
[394928063,1764147038334,-500.0,6.518e-05,2]
[394928064,1764147038345,-372.43530132,6.518e-05,2]
[394928065,1764147038355,-500.0,6.518e-05,2]
[394928066,1764147038365,-500.0,6.518e-05,2]
[394928067,1764147038375,-500.0,6.518e-05,2]
[394928068,1764147038385,-500.0,6.518e-05,2]
[394928069,1764147038395,-500.0,6.518e-05,2]
[394928070,1764147038405,-500.0,6.518e-05,2]
[394928071,1764147038414,-500.0,6.518e-05,2]
[394928072,1764147038424,-550.0,6.518e-05,2]
[394928073,1764147038434,-227.27441651,6.518e-05,2]
[394928074,1764147038444,-500.0,6.518e-05,2]
[394928075,1764147038454,-500.0,6.518e-05,2]
[394928076,1764147038463,-500.0,6.518e-05,2]
[394928077,1764147038473,-500.0,6.518e-05,2]
[394928078,1764147038483,-500.0,6.518e-05,2]
[394928079,1764147038493,-400.0,6.518e-05,2]
[394928080,1764147038502,-500.0,6.518e-05,2]
[394928081,1764147038511,-500.0,6.518e-05,2]
[394928082,1764147038521,-500.0,6.518e-05,2]
[394928083,1764147038532,-500.0,6.518e-05,2]
[394928084,1764147038541,-500.0,6.518e-05,2]
[394928085,1764147038553,-500.0,6.518e-05,2]
[394928086,1764147038562,-500.0,6.518e-05,2]
[394928087,1764147038571,-500.0,6.518e-05,2]
[394928088,1764147038580,-500.0,6.518e-05,2]
[394928089,1764147038589,-500.0,6.518e-05,2]
[394928090,1764147038598,-500.0,6.518e-05,2]
[394928091,1764147038608,-500.0,6.518e-05,2]
[394928092,1764147038617,-500.0,6.518e-05,2]
[394928093,1764147038627,-500.0,6.518e-05,2]
[394928094,1764147038637,-500.0,6.518e-05,2]
[394928095,1764147038647,-500.0,6.518e-05,2]
[394928096,1764147038658,-500.0,6.518e-05,2]
[394928097,1764147038668,-500.0,6.518e-05,2]
[394928098,1764147038678,-500.0,6.518e-05,2]
[394928099,1764147038688,-500.0,6.518e-05,2]
[394928100,1764147038698,-500.0,6.518e-05,2]
[394928101,1764147038916,-500.0,6.518e-05,2]
[394928102,1764147038936,-500.0,6.518e-05,2]
[394928103,1764147038946,-116.99196879,6.518e-05,2]
[394928104,1764147038956,-1200.0,6.519e-05,2]
[394928105,1764147038967,-506.57002939,6.523e-05,2]
[394928106,1764147038977,-500.49398478,6.523e-05,2]
[394928107,1764147038987,-500.51784347,6.523e-05,2]
[394928108,1764147038997,-500.0,6.523e-05,2]
[394928109,1764147039008,-500.0,6.523e-05,2]
[394928110,1764147039019,-304.40043598,6.523e-05,2]
[394928111,1764147039028,-500.0,6.523e-05,2]
[394928112,1764147039039,-500.0,6.523e-05,2]
[394928113,1764147039049,-500.0,6.523e-05,2]
[394928114,1764147039060,-500.0,6.523e-05,2]
[394928115,1764147039071,-500.0,6.523e-05,2]
[394928116,1764147039081,-501.4300608,6.523e-05,2]
[394928117,1764147039092,-500.0,6.523e-05,2]
[394928118,1764147039101,-500.0,6.523e-05,2]
[394928119,1764147039111,-151.47953143,6.544e-05,2]
[394928120,1764147039121,-151.59950728,6.544e-05,2]
[394928121,1764147039131,-151.16944996,6.544e-05,2]
[394928122,1764147039142,-151.27353928,6.544e-05,2]
[394928123,1764147039152,-205.29842228,6.544e-05,2]
[394928124,1764147039162,-283517.80805965,6.548e-05,2]
[394928125,1764147040592,-1000.0,6.548e-05,2]
[394928135,1764147044956,-27861.11697734,6.482e-05,2]
[394928136,1764147044966,-1168.7777381,6.548e-05,2]
[394928137,1764147045010,-792.54,6.548e-05,2]
[394928140,1764147046378,-51047.10396405,6.548e-05,2]
[394928197,1764148233097,-206.0,6.417e-05,2]
[394928198,1764148233107,-222.2583731,6.426e-05,2]
[394928199,1764148233116,-36.17690202,6.493e-05,2]
[394928201,1764148238326,-463.82309798,6.493e-05,2]
[394928202,1764148238336,-500.0,6.508e-05,2]
[394928203,1764148238345,-500.0,6.508e-05,2]
[394928204,1764148238355,-500.0,6.508e-05,2]
[394928205,1764148238366,-1071.01963532,6.508e-05,2]
[394928206,1764148238375,-500.0,6.508e-05,2]
[394928207,1764148238385,-500.0,6.508e-05,2]
[394928208,1764148238395,-1071.01963532,6.508e-05,2]
[394928209,1764148238405,-500.0,6.508e-05,2]
[394928210,1764148238415,-500.0,6.508e-05,2]
[394928211,1764148238424,-500.0,6.508e-05,2]
[394928212,1764148238434,-500.0,6.508e-05,2]
[394928213,1764148238443,-500.0,6.508e-05,2]
[394928214,1764148238453,-1071.01963532,6.508e-05,2]
[394928215,1764148238464,-500.0,6.508e-05,2]
[394928216,1764148238473,-500.0,6.508e-05,2]
[394928217,1764148238483,-500.0,6.508e-05,2]
[394928218,1764148238493,-500.0,6.508e-05,2]
[394928219,1764148238503,-1071.01963532,6.508e-05,2]
[394928220,1764148238512,-500.0,6.508e-05,2]
[394928221,1764148238522,-500.0,6.508e-05,2]
[394928222,1764148238532,-500.0,6.508e-05,2]
[394928223,1764148238541,-500.0,6.508e-05,2]
[394928224,1764148238551,-659.20722082,6.508e-05,2]
[394928225,1764148238567,-411.8124145,6.508e-05,2]
[394928226,1764148238576,-500.0,6.508e-05,2]
[394928227,1764148238586,-500.0,6.508e-05,2]
[394928228,1764148238595,-500.0,6.508e-05,2]
[394928229,1764148238604,-500.0,6.508e-05,2]
[394928230,1764148238613,-429.74098542,6.508e-05,2]
[394928253,1764148245786,-348.4718597,6.508e-05,2]
[394928281,1764148246701,-292.8067902,6.508e-05,2]
[394928282,1764148246710,-500.0,6.508e-05,2]
[394928283,1764148246720,-500.0,6.508e-05,2]
[394928284,1764148246731,-1071.01963532,6.508e-05,2]